[Event "RUS-chT Premier 2021"]
[White "Petrov,Nikita"]
[Black "Artemiev,Vladislav"]
[WhiteTeam "Школа М. Ботвинника"]
[BlackTeam "Ладья"]
[Site "Sochi"]
[Round "2.1"]
[Annotator "ChessBase"]
[Result "1/2-1/2"]
[Date "2021.05.02"]
[WhiteElo "2567"]
[BlackElo "2709"]
[PlyCount "80"]
[TimeControl "60"]

1. d4 {[%emt 0:0:0]} d5 {[%emt 0:0:0]} 2. c4 {[%emt 0:0:0]} e6 {[%emt 0:0:0]} 3. Nf3 {[%emt 0:0:23]} c5 {[%emt 0:3:54]} 4. cxd5 {[%emt 0:0:12]} exd5 {[%emt 0:0:14]} 5. Nc3 {[%emt 0:1:49]} Nc6 {[%emt 0:0:27]} 6. dxc5 {[%emt 0:2:17]
} d4 {[%emt 0:0:40]} 7. Na4 {[%emt 0:0:16]} Bxc5 {[%emt 0:0:0]} 8. Nxc5 {[%emt 0:0:6]} Qa5+ {[%emt 0:0:9]} 9. Qd2 {[%emt 0:0:8]} Qxc5 {[%emt 0:0:15]} 10. e3 {[%emt 0:4:13]} dxe3 {[%emt 0:5:26]} 11. Qxe3+ {[%emt 0:0:6]
} Qxe3+ {[%emt 0:0:41]} 12. Bxe3 {[%emt 0:0:2]} Nf6 {[%emt 0:0:0]} 13. Bc4 {[%emt 0:11:28]} 0-0 {[%emt 0:1:39]} 14. 0-0 {[%emt 0:7:8]} Re8 {[%emt 0:3:3]} 15. Rac1 {[%emt 0:4:47]} Be6 {[%emt 0:0:49]} 16. Bxe6 {[%emt 0:4:59]
} Rxe6 {[%emt 0:1:20]} 17. Nd4 {[%emt 0:8:29]} Nxd4 {[%emt 0:0:0]} 18. Bxd4 {[%emt 0:0:2]} b6 {[%emt 0:19:55]} 19. Bxf6 {[%emt 0:11:48]} Rxf6 {[%emt 0:0:59]} 20. Rfd1 {[%emt 0:0:34]} g6 {[%emt 0:0:32]} 21. Kf1 {[%emt 0:1:36]
} Kg7 {[%emt 0:1:46]} 22. Rd2 {[%emt 0:4:54]} Re8 {[%emt 0:0:0]} 23. Rc7 {[%emt 0:2:49]} a5 {[%emt 0:0:57]} 24. g3 {[%emt 0:1:46]} g5 {[%emt 0:5:35]
} 25. h3 {[%emt 0:3:19]} Re4 {[%emt 0:2:59]} 26. Rcd7 {[%emt 0:0:0]} Kg6 {[%emt 0:14:11]} 27. R7d6 {[%emt 0:2:26]} Rb4 {[%emt 0:2:47]} 28. b3 {[%emt 0:3:43]} Rxd6 {[%emt 0:1:29]} 29. Rxd6+ {[%emt 0:0:3]} f6 {[%emt 0:0:7]
} 30. g4 {[%emt 0:5:0]} h6 {[%emt 0:2:40]} 31. Kg2 {[%emt 0:0:0]} b5 {[%emt 0:2:10]} 32. Rb6 {[%emt 0:1:37]} a4 {[%emt 0:0:25]} 33. bxa4 {[%emt 0:0:7]} Rxa4 {[%emt 0:0:3]} 34. Rxb5 {[%emt 0:0:4]} Rxa2 {[%emt 0:0:6]
} 35. Rb6 {[%emt 0:0:7]} Ra3 {[%emt 0:0:10]} 36. Rc6 {[%emt 0:0:0]} Rd3 {[%emt 0:0:6]} 37. Ra6 {[%emt 0:0:10]} Rc3 {[%emt 0:0:10]} 38. Rb6 {[%emt 0:0:5]} Rd3 {[%emt 0:0:8]} 39. Ra6 {[%emt 0:0:4]} Rb3 {[%emt 0:0:9]
} 40. Rc6 {[%emt 0:0:0]} Rd3 {[%emt 0:0:0]} 1/2-1/2

[Event "RUS-chT Premier 2021"]
[White "Oparin,Grigoriy"]
[Black "Zakhartsov,Vladimir"]
[WhiteTeam "Ладья"]
[BlackTeam "Школа М. Ботвинника"]
[Site "Sochi"]
[Round "2.2"]
[Annotator "ChessBase"]
[Result "1-0"]
[Date "2021.05.02"]
[WhiteElo "2652"]
[BlackElo "2486"]
[PlyCount "151"]
[TimeControl "60"]

1. d4 {[%emt 0:0:0]} d5 2. Nf3 {[%emt 0:0:0]} Nf6 {[%emt 0:0:40]} 3. c4 {[%emt 0:0:0]
} dxc4 {[%emt 0:0:25]} 4. e3 {[%emt 0:0:16]} e6 {[%emt 0:0:24]
} 5. Bxc4 {[%emt 0:0:14]} c5 {[%emt 0:0:13]} 6. 0-0 {[%emt 0:0:31]} a6 {[%emt 0:0:31]
} 7. a4 {[%emt 0:3:40]} Nc6 {[%emt 0:0:48]} 8. Nc3 {[%emt 0:0:0]} Be7 {[%emt 0:0:33]} 9. Qe2 {[%emt 0:1:51]} cxd4 {[%emt 0:1:21]} 10. exd4 {[%emt 0:0:6]} Nxd4 {[%emt 0:3:17]} 11. Nxd4 {[%emt 0:0:17]} Qxd4 {[%emt 0:0:4]
} 12. Rd1 {[%emt 0:5:3]} Qh4 {[%emt 0:6:12]} 13. Be3 {[%emt 0:0:0]} Bd7 {[%emt 0:6:14]} 14. Rd4 {[%emt 0:11:54]} Qh5 {[%emt 0:0:50]} 15. Qxh5 {[%emt 0:0:4]} Nxh5 {[%emt 0:0:7]} 16. g4 {[%emt 0:0:3]} Nf6 {[%emt 0:1:49]
} 17. g5 {[%emt 0:0:26]} Ng8 {[%emt 0:6:14]} 18. b4 {[%emt 0:0:0]} Bxb4 {[%emt 0:24:35]} 19. Bxe6 {[%emt 0:1:42]} Bxe6 {[%emt 0:7:4]} 20. Rxb4 {[%emt 0:0:8]} Ne7 {[%emt 0:0:5]} 21. Rxb7 {[%emt 0:0:43]} Nd5 {[%emt 0:2:52]
} 22. Nxd5 {[%emt 0:3:1]} Bxd5 {[%emt 0:0:4]} 23. Rb6 {[%emt 0:0:51]
} 0-0 {[%emt 0:1:11]} 24. Rc1 {[%emt 0:0:25]} f6 {[%emt 0:0:0]} 25. h4 {[%emt 0:2:58]} fxg5 {[%emt 0:1:32]} 26. hxg5 {[%emt 0:0:6]} Rf7 {[%emt 0:2:33]} 27. a5 {[%emt 0:2:18]} Be4 {[%emt 0:2:39]} 28. Rd6 {[%emt 0:1:53]
} Bf3 {[%emt 0:3:34]} 29. Rc2 {[%emt 0:2:22]} Rb7 {[%emt 0:0:0]} 30. Kh2 {[%emt 0:1:31]} Bh5 {[%emt 0:2:30]} 31. Kg3 {[%emt 0:2:52]} Be8 {[%emt 0:0:38]} 32. f4 {[%emt 0:1:8]} Rb3 {[%emt 0:2:34]} 33. Kf2 {[%emt 0:0:0]} Rb7 {[%emt 0:3:7]} 34. f5 {[%emt 0:4:36]} Bd7 {[%emt 0:4:36]} 35. Rc5 {[%emt 0:2:39]} Bb5 {[%emt 0:0:44]} 36. Bd4 {[%emt 0:2:12]} Rd7 {[%emt 0:3:50]
} 37. Rxd7 {[%emt 0:0:33]} Bxd7 {[%emt 0:0:2]} 38. Kg3 {[%emt 0:1:51]
} Rc8 {[%emt 0:1:39]} 39. Rd5 {[%emt 0:0:13]} Bb5 {[%emt 0:0:0]} 40. Kf4 {[%emt 0:0:0]} Kf7 {[%emt 0:0:0]} 41. Rd6 {[%emt 0:2:14]} Rc7 {[%emt 0:10:44]} 42. Rb6 {[%emt 0:1:16]} Bd3 {[%emt 0:1:22]} 43. Rd6 {[%emt 0:13:2]
} Rc1 {[%emt 0:5:22]} 44. Rd7+ {[%emt 0:5:51]} Ke8 {[%emt 0:0:0]} 45. Rd5 {[%emt 0:0:5]} Rf1+ {[%emt 0:3:52]} 46. Kg4 {[%emt 0:0:4]} Be2+ {[%emt 0:0:32]} 47. Kg3 {[%emt 0:0:6]} Rf3+ {[%emt 0:0:27]} 48. Kg2 {[%emt 0:0:6]
} Rf4 {[%emt 0:3:1]} 49. Re5+ {[%emt 0:0:9]} Kd7 {[%emt 0:0:0]} 50. Be3 {[%emt 0:0:22]} Rb4 {[%emt 0:11:59]} 51. f6 {[%emt 0:5:2]} gxf6 {[%emt 0:0:14]} 52. gxf6 {[%emt 0:0:4]} Bc4 {[%emt 0:0:50]} 53. Re7+ {[%emt 0:0:18]
} Kd6 {[%emt 0:1:36]} 54. Bf4+ {[%emt 0:0:31]} Kc6 {[%emt 0:0:0]} 55. f7 {[%emt 0:0:46]} Bxf7 {[%emt 0:1:20]} 56. Rxf7 {[%emt 0:0:5]} h5 {[%emt 0:1:38]} 57. Rf6+ {[%emt 0:0:30]} Kb7 {[%emt 0:0:10]} 58. Be3 {[%emt 0:0:55]
} Rb5 {[%emt 0:0:18]} 59. Bb6 {[%emt 0:0:17]} Rg5+ {[%emt 0:0:0]} 60. Kf3 {[%emt 0:0:7]} Rg7 {[%emt 0:0:37]} 61. Be3 {[%emt 0:1:35]} Rc7 {[%emt 0:0:31]} 62. Rb6+ {[%emt 0:0:23]} Ka7 {[%emt 0:0:9]} 63. Rh6+ {[%emt 0:0:8]
} Kb7 {[%emt 0:0:2]} 64. Ke4 {[%emt 0:0:25]} h4 {[%emt 0:0:0]} 65. Kd5 {[%emt 0:0:26]} h3 {[%emt 0:0:11]} 66. Rxh3 {[%emt 0:0:15]} Rd7+ {[%emt 0:0:15]} 67. Kc4 {[%emt 0:0:8]} Rc7+ {[%emt 0:0:10]} 68. Bc5 {[%emt 0:0:6]
} Ka8 {[%emt 0:0:24]} 69. Kd5 {[%emt 0:0:23]} Kb7 {[%emt 0:0:0]} 70. Bd6 {[%emt 0:0:54]} Rg7 {[%emt 0:0:51]} 71. Rb3+ {[%emt 0:0:29]} Ka8 {[%emt 0:0:9]} 72. Kc6 {[%emt 0:0:15]} Rg8 {[%emt 0:1:18]} 73. Rh3 {[%emt 0:0:47]
} Rg6 {[%emt 0:1:23]} 74. Rh8+ {[%emt 0:0:32]} Ka7 {[%emt 0:0:0]} 75. Rh7+ {[%emt 0:0:5]} Ka8 {[%emt 0:0:5]} 76. Rd7 {[%emt 0:0:40]} 1-0

[Event "RUS-chT Premier 2021"]
[White "Makarian,Rudik"]
[Black "Timofeev,Artyom"]
[WhiteTeam "Школа М. Ботвинника"]
[BlackTeam "Ладья"]
[Site "Sochi"]
[Round "2.3"]
[Annotator "ChessBase"]
[Result "1/2-1/2"]
[Date "2021.05.02"]
[WhiteElo "2468"]
[BlackElo "2594"]
[PlyCount "82"]
[TimeControl "60"]

1. d4 {[%emt 0:0:0]} d5 {[%emt 0:0:0]} 2. c4 {[%emt 0:0:0]} e6 {[%emt 0:0:0]} 3. Nf3 {[%emt 0:0:3]} c6 {[%emt 0:0:26]} 4. b3 {[%emt 0:0:51]} Bd6 {[%emt 0:6:38]} 5. g3 {[%emt 0:1:15]} f5 {[%emt 0:0:47]} 6. Bg2 {[%emt 0:0:0]} Nf6 {[%emt 0:0:10]} 7. 0-0 {[%emt 0:0:4]} 0-0 {[%emt 0:0:12]} 8. Ba3 {[%emt 0:12:59]
} Bxa3 {[%emt 0:1:50]} 9. Nxa3 {[%emt 0:1:56]} Bd7 {[%emt 0:0:0]} 10. Nc2 {[%emt 0:13:7]} Be8 {[%emt 0:3:23]} 11. Nce1 {[%emt 0:1:13]} Bh5 {[%emt 0:10:9]} 12. Nd3 {[%emt 0:2:1]} Bxf3 {[%emt 0:1:26]} 13. exf3 {[%emt 0:2:21]
} Nbd7 {[%emt 0:9:3]} 14. Qe1 {[%emt 0:13:2]} Re8 {[%emt 0:0:0]} 15. Qc3 {[%emt 0:0:3]} Rc8 {[%emt 0:3:45]} 16. Rfe1 {[%emt 0:5:59]} c5 {[%emt 0:4:11]} 17. dxc5 {[%emt 0:9:52]} Nxc5 {[%emt 0:0:42]} 18. Nxc5 {[%emt 0:2:40]
} Rxc5 {[%emt 0:0:9]} 19. Qd4 {[%emt 0:0:23]} b6 {[%emt 0:0:0]} 20. cxd5 {[%emt 0:1:36]} Rxd5 {[%emt 0:2:14]} 21. Qc4 {[%emt 0:0:18]} Rd4 {[%emt 0:7:47]} 22. Qc6 {[%emt 0:2:52]} Rd6 {[%emt 0:2:27]} 23. Qc4 {[%emt 0:1:10]
} Rd4 {[%emt 0:0:38]} 24. Qc6 {[%emt 0:4:41]} Rd6 {[%emt 0:0:0]} 25. Qa4 {[%emt 0:3:44]} Qd7 {[%emt 0:0:51]} 26. Qxd7 {[%emt 0:0:24]} Rxd7 {[%emt 0:0:59]} 27. Bf1 {[%emt 0:5:5]} Rd6 {[%emt 0:3:36]} 28. Rac1 {[%emt 0:0:40]
} Kf7 {[%emt 0:0:57]} 29. Rc2 {[%emt 0:0:56]} Nd5 {[%emt 0:0:0]} 30. Bc4 {[%emt 0:0:52]} Nb4 {[%emt 0:1:46]} 31. Rce2 {[%emt 0:0:32]} Nc6 {[%emt 0:1:19]} 32. Bb5 {[%emt 0:1:9]} Red8 {[%emt 0:0:33]} 33. Bxc6 {[%emt 0:0:17]
} Rxc6 {[%emt 0:0:6]} 34. Kg2 {[%emt 0:0:7]} Kf6 {[%emt 0:0:0]} 35. f4 {[%emt 0:0:7]} Rd3 {[%emt 0:1:0]} 36. h4 {[%emt 0:0:17]} h5 {[%emt 0:2:39]
} 37. Kh2 {[%emt 0:0:31]} b5 {[%emt 0:0:24]} 38. Kg2 {[%emt 0:0:0]} a6 {[%emt 0:5:5]} 39. Kh2 {[%emt 0:0:26]} Rd5 {[%emt 0:3:53]} 40. Kg2 {[%emt 0:0:0]} a5 {[%emt 0:0:0]} 41. Kf1 {[%emt 0:1:1]} Kf7 {[%emt 0:0:0]} 1/2-1/2

[Event "RUS-chT Premier 2021"]
[White "Makhmutov,Rail"]
[Black "Afanasiev,Nikita"]
[WhiteTeam "Ладья"]
[BlackTeam "Школа М. Ботвинника"]
[Site "Sochi"]
[Round "2.4"]
[Annotator "ChessBase"]
[Result "0-1"]
[Date "2021.05.02"]
[WhiteElo "2450"]
[BlackElo "2529"]
[PlyCount "72"]
[TimeControl "60"]

1. d4 {[%emt 0:0:0]} Nf6 {[%emt 0:0:0]} 2. c4 {[%emt 0:0:0]} g6 {[%emt 0:0:0]} 3. Nc3 {[%emt 0:0:7]} d5 {[%emt 0:0:0]} 4. cxd5 {[%emt 0:0:47]} Nxd5 {[%emt 0:0:0]} 5. e4 {[%emt 0:0:9]} Nxc3 {[%emt 0:0:2]} 6. bxc3 {[%emt 0:0:6]
} Bg7 {[%emt 0:0:3]} 7. Nf3 {[%emt 0:0:10]} c5 {[%emt 0:0:14]
} 8. Bb5+ {[%emt 0:1:1]} Nd7 {[%emt 0:1:9]} 9. 0-0 {[%emt 0:1:0]} a6 {[%emt 0:3:34]
} 10. Be2 {[%emt 0:7:25]} 0-0 {[%emt 0:3:27]} 11. a4 {[%emt 0:0:0]} Nf6 {[%emt 0:6:51]} 12. Qd3 {[%emt 0:2:0]} b6 {[%emt 0:4:34]} 13. Bf4 {[%emt 0:4:14]} cxd4 {[%emt 0:10:46]} 14. cxd4 {[%emt 0:0:44]} Bb7 {[%emt 0:0:16]
} 15. Nd2 {[%emt 0:6:51]} Ne8 {[%emt 0:7:15]} 16. Be3 {[%emt 0:0:0]} Nd6 {[%emt 0:0:23]} 17. Rfb1 {[%emt 0:20:49]} b5 {[%emt 0:6:27]} 18. axb5 {[%emt 0:5:36]} axb5 {[%emt 0:7:27]} 19. Rxa8 {[%emt 0:3:39]} Qxa8 {[%emt 0:1:30]
} 20. Bf3 {[%emt 0:5:0]} Rc8 {[%emt 0:12:8]} 21. h4 {[%emt 0:0:0]} Nc4 {[%emt 0:3:31]} 22. h5 {[%emt 0:7:0]} Qa4 {[%emt 0:16:34]} 23. Nb3 {[%emt 0:2:8]} Nxe3 {[%emt 0:0:29]} 24. Qxe3 {[%emt 0:0:40]} Qb4 {[%emt 0:0:55]
} 25. Rd1 {[%emt 0:8:58]} Rc3 {[%emt 0:1:12]} 26. Rd3 {[%emt 0:0:0]} Bh6 {[%emt 0:0:37]} 27. Rxc3 {[%emt 0:4:5]} Bxe3 {[%emt 0:0:5]} 28. Rxe3 {[%emt 0:0:4]} Kg7 {[%emt 0:1:39]} 29. hxg6 {[%emt 0:2:40]} hxg6 {[%emt 0:0:3]
} 30. g3 {[%emt 0:1:17]} g5 {[%emt 0:1:44]} 31. Kh2 {[%emt 0:0:0]} Bc8 {[%emt 0:2:52]} 32. Kg1 {[%emt 0:0:39]} Qa3 {[%emt 0:0:59]} 33. Be2 {[%emt 0:0:30]} b4 {[%emt 0:0:11]} 34. Bc4 {[%emt 0:0:29]} Bg4 {[%emt 0:0:0]} 35. Kg2 {[%emt 0:0:31]} Qb2 {[%emt 0:0:20]} 36. e5 {[%emt 0:0:41]} Bd1 {[%emt 0:0:11]} 0-1

[Event "RUS-chT Premier 2021"]
[White "Kukhmazov,Arsen"]
[Black "Samusenko,Maksim"]
[WhiteTeam "Школа М. Ботвинника"]
[BlackTeam "Ладья"]
[Site "Sochi"]
[Round "2.5"]
[Annotator "ChessBase"]
[Result "1/2-1/2"]
[Date "2021.05.02"]
[WhiteElo "2451"]
[BlackElo "2467"]
[PlyCount "100"]
[TimeControl "60"]

1. d4 {[%emt 0:0:0]} Nf6 {[%emt 0:0:0]} 2. c4 {[%emt 0:0:0]} d6 {[%emt 0:0:0]} 3. Nf3 {[%emt 0:0:0]} g6 {[%emt 0:0:52]} 4. g3 {[%emt 0:0:0]} Bg7 {[%emt 0:0:37]} 5. Bg2 {[%emt 0:0:0]} 0-0 {[%emt 0:0:16]} 6. 0-0 {[%emt 0:0:0]} c6 {[%emt 0:0:55]} 7. Nc3 {[%emt 0:0:11]} Qa5 {[%emt 0:1:49]} 8. e4 {[%emt 0:0:52]} e5 {[%emt 0:2:5]} 9. h3 {[%emt 0:0:35]} Nbd7 {[%emt 0:0:0]} 10. Qc2 {[%emt 0:1:17]} exd4 {[%emt 0:8:57]} 11. Nxd4 {[%emt 0:1:45]} Nb6 {[%emt 0:0:17]} 12. b3 {[%emt 0:2:24]} Nxe4 {[%emt 0:11:34]} 13. Nxe4 {[%emt 0:0:13]
} Bxd4 {[%emt 0:0:6]} 14. Bd2 {[%emt 0:0:5]} Qe5 {[%emt 0:0:0]} 15. Bf4 {[%emt 0:0:19]} Qg7 {[%emt 0:9:44]} 16. Rad1 {[%emt 0:1:57]} Bf5 {[%emt 0:20:38]} 17. Qd2 {[%emt 0:4:40]} Bxe4 18. Bxe4 {[%emt 0:1:56]} Bc3 {[%emt 0:3:19]} 19. Qxd6 {[%emt 0:0:45]} Rfe8 {[%emt 0:1:16]} 20. Bf3 {[%emt 0:3:36]
} Be5 {[%emt 0:1:41]} 21. Bxe5 {[%emt 0:1:49]} Qxe5 {[%emt 0:0:0]} 22. c5 {[%emt 0:1:5]} Qxd6 {[%emt 0:3:39]} 23. Rxd6 {[%emt 0:0:10]} Nc8 {[%emt 0:0:20]} 24. Rd7 {[%emt 0:0:21]} Rb8 {[%emt 0:0:17]} 25. Rfd1 {[%emt 0:0:48]
} Kf8 {[%emt 0:1:49]} 26. R1d4 {[%emt 0:19:47]} Re7 {[%emt 0:0:0]} 27. Rd8+ {[%emt 0:2:20]} Re8 {[%emt 0:0:30]} 28. Kg2 {[%emt 0:13:3]} h5 {[%emt 0:2:57]} 29. Be4 {[%emt 0:3:41]} Rxd8 {[%emt 0:2:36]} 30. Rxd8+ {[%emt 0:0:5]
} Ke7 {[%emt 0:0:8]} 31. Rh8 {[%emt 0:0:25]} Ra8 {[%emt 0:0:0]} 32. f4 {[%emt 0:12:41]} Kf6 {[%emt 0:1:19]} 33. Rd8 {[%emt 0:0:28]} Ke6 {[%emt 0:5:33]} 34. Rd4 {[%emt 0:2:11]} Rb8 {[%emt 0:0:22]} 35. Kf2 {[%emt 0:3:15]
} b6 {[%emt 0:0:31]} 36. Bxc6 {[%emt 0:1:5]} bxc5 {[%emt 0:0:0]} 37. Rd8 {[%emt 0:1:1]} Ke7 {[%emt 0:0:40]} 38. Re8+ {[%emt 0:17:33]} Kd6 {[%emt 0:0:6]} 39. Be4 {[%emt 0:0:4]} Rb4 {[%emt 0:1:37]} 40. Kf3 {[%emt 0:0:0]
} Kd7 {[%emt 0:0:0]} 41. Re5 {[%emt 0:9:12]} Nd6 {[%emt 0:0:0]} 42. Bd3 {[%emt 0:0:59]} Rd4 {[%emt 0:9:27]} 43. Ke3 {[%emt 0:3:57]} Kc6 {[%emt 0:0:40]} 44. Rg5 {[%emt 0:5:27]} a5 45. h4 Rd5 {[%emt 0:12:9]} 46. f5 {[%emt 0:12:44]} gxf5 {[%emt 0:0:44]} 47. Be2 {[%emt 0:1:20]} Re5+ {[%emt 0:0:0]} 48. Kd3 {[%emt 0:0:3]} Rd5+ {[%emt 0:1:13]} 49. Ke3 {[%emt 0:0:9]} Re5+ {[%emt 0:0:4]} 50. Kd3 {[%emt 0:0:4]} Rd5+ {[%emt 0:0:12]} 1/2-1/2

[Event "RUS-chT Premier 2021"]
[White "Faizrakhmanov,Ramil"]
[Black "Vetokhin,Savva"]
[WhiteTeam "Ладья"]
[BlackTeam "Школа М. Ботвинника"]
[Site "Sochi"]
[Round "2.6"]
[Annotator "ChessBase"]
[Result "1/2-1/2"]
[Date "2021.05.02"]
[WhiteElo "2477"]
[BlackElo "2261"]
[PlyCount "106"]
[TimeControl "60"]

1. d4 {[%emt 0:0:0]} Nf6 2. c4 {[%emt 0:0:0]} e6 {[%emt 0:0:0]} 3. Nf3 {[%emt 0:0:4]
} d5 {[%emt 0:0:0]} 4. Nc3 {[%emt 0:0:35]} Bb4 {[%emt 0:0:11]
} 5. Qa4+ {[%emt 0:1:6]} Nc6 {[%emt 0:0:19]} 6. e3 {[%emt 0:0:27]} 0-0 {[%emt 0:0:38]
} 7. Bd2 {[%emt 0:0:46]} dxc4 {[%emt 0:0:9]} 8. Bxc4 {[%emt 0:0:0]} Bd6 {[%emt 0:0:8]} 9. Rd1 {[%emt 0:2:31]} e5 {[%emt 0:2:8]} 10. dxe5 {[%emt 0:1:48]} Nxe5 {[%emt 0:3:13]} 11. Nxe5 {[%emt 0:0:38]} Bxe5 {[%emt 0:0:5]
} 12. h3 {[%emt 0:1:11]} Qe7 {[%emt 0:1:55]} 13. Qc2 {[%emt 0:0:0]} Be6 {[%emt 0:4:32]} 14. Bd3 {[%emt 0:0:26]} Rfd8 {[%emt 0:0:40]} 15. 0-0 {[%emt 0:1:15]} Qd7 {[%emt 0:2:36]} 16. Be1 {[%emt 0:2:31]} Qc6 {[%emt 0:1:5]
} 17. f4 {[%emt 0:8:26]} Bxc3 {[%emt 0:6:6]} 18. Bxc3 {[%emt 0:1:58]
} Bc4 {[%emt 0:10:50]} 19. Bxf6 {[%emt 0:6:55]} Rxd3 {[%emt 0:0:0]} 20. Rxd3 {[%emt 0:0:42]} Bxd3 {[%emt 0:0:6]} 21. Qxc6 {[%emt 0:0:0]} bxc6 {[%emt 0:0:7]} 22. Rd1 {[%emt 0:0:8]} Bc4 {[%emt 0:0:6]} 23. Bd4 {[%emt 0:1:56]} Bxa2 {[%emt 0:0:18]} 24. Bxa7 {[%emt 0:0:36]} Bd5 {[%emt 0:2:28]
} 25. Bd4 {[%emt 0:0:21]} f6 {[%emt 0:4:56]} 26. Kf2 {[%emt 0:0:0]} Kf7 {[%emt 0:0:8]} 27. Bc3 {[%emt 0:3:21]} h5 {[%emt 0:2:43]} 28. Rd4 {[%emt 0:1:1]} f5 {[%emt 0:6:50]} 29. g4 {[%emt 0:3:50]} hxg4 {[%emt 0:0:0]} 30. hxg4 {[%emt 0:0:7]} g6 {[%emt 0:0:22]} 31. g5 {[%emt 0:1:35]} Ke6 {[%emt 0:4:45]} 32. Rd1 {[%emt 0:1:29]} c5 {[%emt 0:5:35]} 33. Be5 {[%emt 0:3:30]
} c6 {[%emt 0:1:18]} 34. Rc1 {[%emt 0:1:7]} c4 {[%emt 0:6:21]
} 35. Kg3 {[%emt 0:2:0]} Ra7 {[%emt 0:2:39]} 36. Bd4 {[%emt 0:1:6]} Ra6 {[%emt 0:0:15]
} 37. Rd1 {[%emt 0:1:19]} Ra8 {[%emt 0:0:31]} 38. Kf2 {[%emt 0:0:0]} Ra2 {[%emt 0:0:39]} 39. Ke2 {[%emt 0:0:50]} Ra5 {[%emt 0:1:7]} 40. Kd2 {[%emt 0:0:0]} Ra6 {[%emt 0:0:0]} 41. Kc3 {[%emt 0:1:34]} Ra5 {[%emt 0:0:56]
} 42. Rc1 {[%emt 0:1:29]} Ra8 {[%emt 0:0:16]} 43. Rc2 {[%emt 0:0:0]} Ra1 {[%emt 0:0:7]} 44. Kb4 Rb1 {[%emt 0:0:55]} 45. Kc5 {[%emt 0:0:0]} Rd1 {[%emt 0:1:20]} 46. Rc3 {[%emt 0:0:48]} Rd3 {[%emt 0:0:8]} 47. Ra3 {[%emt 0:2:55]} Rb3 {[%emt 0:0:6]} 48. Ra5 {[%emt 0:0:33]} Rb5+ {[%emt 0:0:0]} 49. Rxb5 {[%emt 0:0:5]} cxb5 {[%emt 0:0:5]} 50. Kxb5 {[%emt 0:0:0]} Kf7 {[%emt 0:0:43]} 51. Kc5 {[%emt 0:2:45]} Be6 {[%emt 0:0:2]} 52. Bf6 {[%emt 0:1:15]} Kg8 {[%emt 0:0:9]} 53. Kd6 {[%emt 0:0:17]} Kf7 {[%emt 0:0:0]} 1/2-1/2

[Event "RUS-chT Premier 2021"]
[White "Truskavetsky,Alexandr"]
[Black "Motylev,Alexander"]
[WhiteTeam "Киммерия"]
[BlackTeam "Гоголевский, 14"]
[Site "Sochi"]
[Round "2.7"]
[Annotator "ChessBase"]
[Result "0-1"]
[Date "2021.05.02"]
[WhiteElo "2387"]
[BlackElo "2641"]
[PlyCount "92"]
[TimeControl "60"]

1. d4 {[%emt 0:0:0]} Nf6 {[%emt 0:0:0]} 2. Nf3 {[%emt 0:0:0]} d5 {[%emt 0:0:0]
} 3. c4 {[%emt 0:1:51]} e6 {[%emt 0:0:17]} 4. g3 {[%emt 0:0:0]} Bb4+ {[%emt 0:0:8]} 5. Bd2 {[%emt 0:0:16]} Be7 {[%emt 0:0:6]} 6. Bg2 {[%emt 0:0:20]} 0-0 {[%emt 0:0:6]} 7. 0-0 {[%emt 0:0:43]} Nbd7 {[%emt 0:0:0]} 8. Qc2 {[%emt 0:3:6]} c6 {[%emt 0:0:28]} 9. Bf4 {[%emt 0:3:53]} a5 {[%emt 0:1:36]
} 10. Rd1 {[%emt 0:6:1]} h6 {[%emt 0:1:12]} 11. Nc3 {[%emt 0:0:0]} dxc4 {[%emt 0:6:25]} 12. e4 {[%emt 0:5:27]} a4 {[%emt 0:1:12]} 13. a3 {[%emt 0:3:48]} Qa5 {[%emt 0:7:22]} 14. Qe2 {[%emt 0:1:50]} Qa6 {[%emt 0:0:0]} 15. d5 {[%emt 0:1:57]} exd5 {[%emt 0:8:29]} 16. exd5 {[%emt 0:2:6]} Re8 {[%emt 0:2:14]} 17. dxc6 {[%emt 0:2:49]} bxc6 {[%emt 0:0:45]} 18. Nd4 {[%emt 0:0:54]
} Bf8 {[%emt 0:9:15]} 19. Qf3 {[%emt 0:11:40]} Nc5 {[%emt 0:0:0]} 20. Qxc6 {[%emt 0:3:0]} Bg4 {[%emt 0:4:16]} 21. Re1 {[%emt 0:11:18]} Rec8 {[%emt 0:4:13]} 22. Qxa6 {[%emt 0:8:15]} Rxa6 {[%emt 0:0:24]} 23. Ndb5 {[%emt 0:13:18]} Rd8 {[%emt 0:21:23]} 24. Nc7 {[%emt 0:0:51]} Rb6 {[%emt 0:0:0]} 25. N7d5 {[%emt 0:2:18]} Nxd5 {[%emt 0:3:34]} 26. Bxd5 {[%emt 0:0:23]} Rxb2 {[%emt 0:1:24]} 27. Bxc4 {[%emt 0:0:21]} Rc2 {[%emt 0:3:48]} 28. Rac1 {[%emt 0:1:11]
} Rxc1 {[%emt 0:0:37]} 29. Bxc1 {[%emt 0:1:54]} Nb3 {[%emt 0:0:0]} 30. Nxa4 {[%emt 0:1:50]} Nd4 {[%emt 0:0:46]} 31. Kg2 {[%emt 0:0:59]} Bf3+ {[%emt 0:3:20]} 32. Kh3 {[%emt 0:0:59]} g5 {[%emt 0:0:25]} 33. g4 {[%emt 0:0:46]
} h5 {[%emt 0:0:48]} 34. gxh5 {[%emt 0:0:43]} g4+ {[%emt 0:0:0]} 35. Kg3 {[%emt 0:0:22]} Bd6+ {[%emt 0:0:53]} 36. Kh4 {[%emt 0:0:5]} Bc6 {[%emt 0:0:36]} 37. Bg5 {[%emt 0:0:41]} Rb8 {[%emt 0:1:40]} 38. Rd1 {[%emt 0:0:45]
} Nf3+ {[%emt 0:1:4]} 39. Kxg4 {[%emt 0:0:10]} Ne5+ {[%emt 0:0:0]} 40. Kf5 {[%emt 0:0:0]} Nxc4 {[%emt 0:0:0]} 41. Nc3 {[%emt 0:1:51]} Bd7+ {[%emt 0:11:1]} 42. Ke4 {[%emt 0:0:24]} Re8+ {[%emt 0:1:27]} 43. Kd4 {[%emt 0:0:20]
} Nb2 {[%emt 0:2:0]} 44. Rg1 {[%emt 0:1:10]} Bxh2 {[%emt 0:0:0]} 45. Rg2 {[%emt 0:1:50]} Be5+ {[%emt 0:0:19]} 46. Kd5 {[%emt 0:0:33]} Be6+ {[%emt 0:1:18]} 0-1

[Event "RUS-chT Premier 2021"]
[White "Goryachkina,Aleksandra"]
[Black "Musalov,Ruslan"]
[WhiteTeam "Гоголевский, 14"]
[BlackTeam "Киммерия"]
[Site "Sochi"]
[Round "2.8"]
[Annotator "ChessBase"]
[Result "1-0"]
[Date "2021.05.02"]
[WhiteElo "2593"]
[BlackElo "2359"]
[PlyCount "115"]
[TimeControl "60"]

1. d4 {[%emt 0:0:0]} d5 {[%emt 0:1:23]} 2. c4 {[%emt 0:0:0]} e6 {[%emt 0:0:0]} 3. Nc3 {[%emt 0:0:19]} Nf6 {[%emt 0:0:8]} 4. cxd5 {[%emt 0:0:35]} exd5 {[%emt 0:1:1]} 5. Bg5 {[%emt 0:0:16]} Nbd7 {[%emt 0:1:42]} 6. e3 {[%emt 0:1:58]
} h6 {[%emt 0:3:13]} 7. Bf4 {[%emt 0:8:4]} a6 {[%emt 0:9:33]} 8. Bd3 {[%emt 0:3:35]} c5 {[%emt 0:0:32]} 9. dxc5 {[%emt 0:2:1]} Nxc5 {[%emt 0:2:2]
} 10. Nge2 {[%emt 0:1:12]} Be7 {[%emt 0:1:4]} 11. 0-0 {[%emt 0:2:19]
} 0-0 {[%emt 0:1:8]} 12. Rc1 {[%emt 0:4:33]} Be6 {[%emt 0:0:0]} 13. Nd4 {[%emt 0:6:18]} Qd7 {[%emt 0:4:35]} 14. Bb1 {[%emt 0:3:10]} Rac8 {[%emt 0:3:51]} 15. h3 {[%emt 0:1:0]} b5 {[%emt 0:3:26]} 16. a3 {[%emt 0:2:0]
} Nce4 {[%emt 0:1:9]} 17. Nxe6 {[%emt 0:6:26]} Qxe6 {[%emt 0:0:0]} 18. Ne2 {[%emt 0:1:44]} Rxc1 {[%emt 0:3:14]} 19. Qxc1 {[%emt 0:0:49]
} Rc8 {[%emt 0:0:49]} 20. Qd1 {[%emt 0:0:11]} Bf8 {[%emt 0:9:46]} 21. Nd4 {[%emt 0:4:52]
} Qb6 {[%emt 0:6:21]} 22. Be5 {[%emt 0:5:13]} Nd7 {[%emt 0:0:0]} 23. Qg4 {[%emt 0:9:9]} Rd8 {[%emt 0:4:32]} 24. Bf4 {[%emt 0:1:13]} Ndf6 {[%emt 0:1:40]} 25. Qe2 {[%emt 0:1:11]} Rc8 {[%emt 0:2:17]} 26. Rd1 {[%emt 0:1:31]
} g6 {[%emt 0:5:22]} 27. Ba2 {[%emt 0:2:58]} Kh7 {[%emt 0:0:0]} 28. Qf3 {[%emt 0:6:4]} Re8 {[%emt 0:1:52]} 29. Nc2 {[%emt 0:3:18]} a5 {[%emt 0:4:47]} 30. Nd4 {[%emt 0:2:45]} Bg7 {[%emt 0:1:16]} 31. Qe2 {[%emt 0:4:20]
} b4 {[%emt 0:0:8]} 32. Qc2 {[%emt 0:2:15]} Nc5 {[%emt 0:0:0]} 33. Rc1 {[%emt 0:1:58]} Bf8 {[%emt 0:0:7]} 34. a4 {[%emt 0:4:40]} Qb7 {[%emt 0:1:31]} 35. Nb5 {[%emt 0:1:8]} Qd7 {[%emt 0:0:16]} 36. Bc7 {[%emt 0:1:41]
} Nb7 {[%emt 0:1:54]} 37. Bb6 {[%emt 0:2:36]} Re6 {[%emt 0:0:0]} 38. Bd4 {[%emt 0:1:4]} Bc5 {[%emt 0:1:2]} 39. Bxf6 {[%emt 0:3:3]} Rxf6 {[%emt 0:0:7]} 40. Rd1 {[%emt 0:0:0]} Rf5 {[%emt 0:0:0]} 41. Qd2 {[%emt 0:5:31]
} Nd6 {[%emt 0:7:40]} 42. Nxd6 {[%emt 0:1:54]} Qxd6 {[%emt 0:0:0]} 43. Bxd5 {[%emt 0:0:52]} Qe5 {[%emt 0:0:21]} 44. Bf3 {[%emt 0:4:38]} Ba7 {[%emt 0:1:13]} 45. Qd7 {[%emt 0:5:57]} Bxe3 {[%emt 0:3:53]} 46. Rd5 {[%emt 0:10:33]
} Qg3 {[%emt 0:0:36]} 47. Rxf5 {[%emt 0:1:42]} Qxf2+ {[%emt 0:0:0]} 48. Kh2 {[%emt 0:0:1]} Qg1+ {[%emt 0:0:43]} 49. Kg3 {[%emt 0:0:2]} Qf2+ {[%emt 0:0:35]} 50. Kh2 {[%emt 0:4:12]} Qg1+ {[%emt 0:0:8]} 51. Kg3 {[%emt 0:0:2]
} Qf2+ {[%emt 0:0:7]} 52. Kg4 {[%emt 0:0:58]} gxf5+ {[%emt 0:0:0]} 53. Kh5 {[%emt 0:0:53]} Kg7 {[%emt 0:2:0]} 54. Bd5 {[%emt 0:0:27]} Qg3 {[%emt 0:1:40]} 55. Qxf7+ {[%emt 0:0:11]} Kh8 {[%emt 0:0:0]} 56. Qf8+ {[%emt 0:0:21]
} Kh7 {[%emt 0:0:4]} 57. Qxf5+ {[%emt 0:0:16]} Kh8 {[%emt 0:0:0]} 58. Qf8+ {[%emt 0:0:6]} 1-0